[Event "Titled Tuesday Blitz October 31 Late 2023"]
[White "Howell, David W L"]
[Black "Fernandez, Maria Florencia"]
[WhiteFideId "410608"]
[BlackFideId "116459"]
[WhiteElo "2974"]
[BlackElo "2313"]
[Result "1-0"]
[Round "5"]
[TimeControl "180+1"]
[Date "2023.10.31"]
[WhiteClock "0:00:07"]
[BlackClock "0:00:02"]
[Board "135"]

1. d4 {[%clk 0:02:48]}  Nf6 {[%clk 0:02:59]} 2. Bf4 {[%clk 0:02:42]}  g6 {[%clk 0:02:58]} 3. Nc3 {[%clk 0:02:38]}  Bg7 {[%clk 0:02:59]} 4. e4 {[%clk 0:02:36]}  d6 {[%clk 0:02:58]} 5. Qd2 {[%clk 0:02:32]}  O-O {[%clk 0:02:57]} 6. O-O-O {[%clk 0:02:25]}  c6 {[%clk 0:02:52]} 7. e5 {[%clk 0:02:12]}  dxe5 {[%clk 0:02:34]} 8. dxe5 {[%clk 0:02:08]}  Qxd2+ {[%clk 0:02:35]} 9. Rxd2 {[%clk 0:02:08]}  Ng4 {[%clk 0:02:33]} 10. Nf3 {[%clk 0:02:01]}  Nd7 {[%clk 0:02:32]} 11. Re2 {[%clk 0:01:29]}  Nc5 {[%clk 0:02:19]} 12. h3 {[%clk 0:01:27]}  Ne6 {[%clk 0:02:06]} 13. Bd2 {[%clk 0:01:23]}  Nh6 {[%clk 0:02:02]} 14. g4 {[%clk 0:01:24]}  f5 {[%clk 0:01:48]} 15. exf6 {[%clk 0:01:09]}  exf6 {[%clk 0:01:42]} 16. Bg2 {[%clk 0:01:09]}  f5 {[%clk 0:01:36]} 17. g5 {[%clk 0:01:07]}  Nf7 {[%clk 0:01:33]} 18. Rhe1 {[%clk 0:01:02]}  Nd4 {[%clk 0:01:22]} 19. Nxd4 {[%clk 0:00:55]}  Bxd4 {[%clk 0:01:23]} 20. Bf4 {[%clk 0:00:48]}  a5 {[%clk 0:01:09]} 21. h4 {[%clk 0:00:41]}  a4 {[%clk 0:01:04]} 22. Rd2 {[%clk 0:00:37]}  Bc5 {[%clk 0:00:55]} 23. a3 {[%clk 0:00:36]}  Ra6 {[%clk 0:00:34]} 24. Bf1 {[%clk 0:00:34]}  Ra5 {[%clk 0:00:30]} 25. Bc4 {[%clk 0:00:32]}  b5 {[%clk 0:00:24]} 26. Ba2 {[%clk 0:00:33]}  b4 {[%clk 0:00:21]} 27. axb4 {[%clk 0:00:30]}  Bxb4 {[%clk 0:00:22]} 28. Rd4 {[%clk 0:00:24]}  Bc5 {[%clk 0:00:16]} 29. Rd2 {[%clk 0:00:23]}  a3 {[%clk 0:00:16]} 30. Kb1 {[%clk 0:00:19]}  axb2 {[%clk 0:00:15]} 31. Kxb2 {[%clk 0:00:14]}  Bb4 {[%clk 0:00:14]} 32. Bb3 {[%clk 0:00:13]}  Rc5 {[%clk 0:00:12]} 33. Re3 {[%clk 0:00:11]}  Ba6 {[%clk 0:00:08]} 34. Rd7 {[%clk 0:00:11]}  Bc4 {[%clk 0:00:07]} 35. Na4 {[%clk 0:00:09]}  Bxb3 {[%clk 0:00:05]} 36. Nxc5 {[%clk 0:00:10]}  Bxc5 {[%clk 0:00:06]} 37. Rxb3 {[%clk 0:00:10]}  Rc8 {[%clk 0:00:03]} 38. Rbb7 {[%clk 0:00:09]}  Nd8 {[%clk 0:00:01]} 39. Rb8 {[%clk 0:00:07]}  Rxb8+ {[%clk 0:00:01]} 40. Bxb8 {[%clk 0:00:07]}  Bb6 {[%clk 0:00:01]} 41. Bc7 {[%clk 0:00:07]}  Bxc7 {[%clk 0:00:02]} 42. Rxc7 {[%clk 0:00:07]}  Ne6 {[%clk 0:00:02]} 43. Rxc6 {[%clk 0:00:07]}  Nf4 {[%clk 0:00:03]} 44. c4 {[%clk 0:00:06]}  Ng2 {[%clk 0:00:03]} 45. c5 {[%clk 0:00:06]}  Nxh4 {[%clk 0:00:04]} 46. Rd6 {[%clk 0:00:06]}  Kf7 {[%clk 0:00:03]} 47. c6 {[%clk 0:00:06]}  Ke7 {[%clk 0:00:04]} 48. Rd3 {[%clk 0:00:06]}  Ng2 {[%clk 0:00:02]} 49. c7 {[%clk 0:00:06]}  Nf4 {[%clk 0:00:03]} 50. Rd2 {[%clk 0:00:06]}  Ne6 {[%clk 0:00:02]} 51. c8=Q {[%clk 0:00:06]}  Nxg5 {[%clk 0:00:03]} 52. Qd8+ {[%clk 0:00:06]}  Kf7 {[%clk 0:00:03]} 53. Qxg5 {[%clk 0:00:07]}  Kg7 {[%clk 0:00:02]} 54. Rd7+ {[%clk 0:00:07]} 1-0


[Site "https://www.chess.com"]

[Event "Titled Tuesday Blitz October 31 Late 2023"]
[White "Wisniowski, Natalie"]
[Black "Kujawski, Adam"]
[WhiteFideId "30929261"]
[BlackFideId "1100920"]
[WhiteElo "2161"]
[BlackElo "2332"]
[Result "0-1"]
[Round "5"]
[TimeControl "180+1"]
[Date "2023.10.31"]
[WhiteClock "0:00:12"]
[BlackClock "0:00:43"]
[Board "139"]

1. e4 {[%clk 0:03:00]}  e5 {[%clk 0:02:40]} 2. Nf3 {[%clk 0:02:58]}  Nc6 {[%clk 0:02:37]} 3. d4 {[%clk 0:02:57]}  exd4 {[%clk 0:02:01]} 4. Bc4 {[%clk 0:02:55]}  Nf6 {[%clk 0:02:00]} 5. Ng5 {[%clk 0:02:52]}  Ne5 {[%clk 0:01:58]} 6. Bb3 {[%clk 0:02:41]}  h6 {[%clk 0:01:57]} 7. Nf3 {[%clk 0:02:39]}  Nxf3+ {[%clk 0:01:39]} 8. Qxf3 {[%clk 0:02:39]}  d6 {[%clk 0:01:38]} 9. h3 {[%clk 0:02:33]}  Be7 {[%clk 0:01:38]} 10. O-O {[%clk 0:02:31]}  O-O {[%clk 0:01:37]} 11. Nd2 {[%clk 0:02:29]}  Be6 {[%clk 0:01:34]} 12. Rd1 {[%clk 0:02:12]}  Qd7 {[%clk 0:01:26]} 13. Nc4 {[%clk 0:02:03]}  c5 {[%clk 0:01:20]} 14. e5 {[%clk 0:01:55]}  dxe5 {[%clk 0:01:19]} 15. Nxe5 {[%clk 0:01:55]}  Qc7 {[%clk 0:01:11]} 16. Bf4 {[%clk 0:01:28]}  Bd6 {[%clk 0:01:10]} 17. c3 {[%clk 0:00:57]}  Bxe5 {[%clk 0:01:06]} 18. Bxe5 {[%clk 0:00:54]}  Qxe5 {[%clk 0:01:06]} 19. cxd4 {[%clk 0:00:55]}  cxd4 {[%clk 0:01:06]} 20. Qxb7 {[%clk 0:00:53]}  Rab8 {[%clk 0:01:01]} 21. Qxa7 {[%clk 0:00:53]}  Bxb3 {[%clk 0:01:01]} 22. axb3 {[%clk 0:00:53]}  Rxb3 {[%clk 0:01:01]} 23. Rxd4 {[%clk 0:00:53]}  Rxb2 {[%clk 0:00:52]} 24. Rad1 {[%clk 0:00:31]}  Re2 {[%clk 0:00:46]} 25. Rd8 {[%clk 0:00:15]}  Re1+ {[%clk 0:00:44]} 26. Rxe1 {[%clk 0:00:13]}  Qxe1+ {[%clk 0:00:44]} 27. Kh2 {[%clk 0:00:12]}  Rxd8 {[%clk 0:00:43]} 0-1


[Site "https://www.chess.com"]

[Event "Titled Tuesday Blitz October 31 Late 2023"]
[White "Romero Ruscalleda, Josep"]
[Black "Fernandez Hernandez, Gerardo"]
[WhiteFideId "2231859"]
[BlackFideId "2207400"]
[WhiteElo "2299"]
[BlackElo "2153"]
[Result "1-0"]
[Round "5"]
[TimeControl "180+1"]
[Date "2023.10.31"]
[WhiteClock "0:00:07"]
[BlackClock "0:00:00"]
[Board "140"]

1. e4 {[%clk 0:03:00]}  e6 {[%clk 0:02:59]} 2. d4 {[%clk 0:03:00]}  d5 {[%clk 0:02:59]} 3. e5 {[%clk 0:03:00]}  c5 {[%clk 0:02:59]} 4. c3 {[%clk 0:03:01]}  Nc6 {[%clk 0:03:00]} 5. Be3 {[%clk 0:03:01]}  cxd4 {[%clk 0:02:59]} 6. cxd4 {[%clk 0:03:00]}  Qb6 {[%clk 0:02:59]} 7. Qd2 {[%clk 0:03:00]}  Nge7 {[%clk 0:02:57]} 8. Nf3 {[%clk 0:02:59]}  Nf5 {[%clk 0:02:56]} 9. Bd3 {[%clk 0:02:57]}  Be7 {[%clk 0:02:49]} 10. Nc3 {[%clk 0:02:55]}  Nxe3 {[%clk 0:02:49]} 11. fxe3 {[%clk 0:02:55]}  Bd7 {[%clk 0:02:44]} 12. O-O {[%clk 0:02:54]}  O-O {[%clk 0:02:34]} 13. a3 {[%clk 0:02:52]}  Na5 {[%clk 0:02:21]} 14. Qc2 {[%clk 0:02:49]}  h6 {[%clk 0:02:10]} 15. Nd2 {[%clk 0:02:44]}  Bg5 {[%clk 0:01:58]} 16. Rae1 {[%clk 0:02:40]}  f5 {[%clk 0:01:34]} 17. exf6 {[%clk 0:02:37]}  Rxf6 {[%clk 0:01:31]} 18. Rxf6 {[%clk 0:02:32]}  Bxf6 {[%clk 0:01:32]} 19. b4 {[%clk 0:02:31]}  Nc4 {[%clk 0:01:20]} 20. Bxc4 {[%clk 0:01:38]}  dxc4 {[%clk 0:01:21]} 21. Nce4 {[%clk 0:01:38]}  Be7 {[%clk 0:01:08]} 22. Qxc4 {[%clk 0:01:36]}  Rc8 {[%clk 0:01:02]} 23. Qb3 {[%clk 0:01:31]}  Qc6 {[%clk 0:00:41]} 24. Nc5 {[%clk 0:01:24]}  b6 {[%clk 0:00:37]} 25. Nxd7 {[%clk 0:01:20]}  Qxd7 {[%clk 0:00:38]} 26. Nf3 {[%clk 0:01:14]}  Qd5 {[%clk 0:00:36]} 27. Qb1 {[%clk 0:01:01]}  Rc3 {[%clk 0:00:28]} 28. Rc1 {[%clk 0:00:51]}  Qf5 {[%clk 0:00:16]} 29. Qb2 {[%clk 0:00:44]}  Rxe3 {[%clk 0:00:14]} 30. Kf2 {[%clk 0:00:41]}  Bg5 {[%clk 0:00:12]} 31. Rc8+ {[%clk 0:00:38]}  Kh7 {[%clk 0:00:11]} 32. a4 {[%clk 0:00:25]}  Re4 {[%clk 0:00:09]} 33. b5 {[%clk 0:00:20]}  Be3+ {[%clk 0:00:08]} 34. Kf1 {[%clk 0:00:20]}  Bxd4 {[%clk 0:00:08]} 35. Qc2 {[%clk 0:00:19]}  Rf4 {[%clk 0:00:06]} 36. Qxf5+ {[%clk 0:00:18]}  Rxf5 {[%clk 0:00:07]} 37. Rc7 {[%clk 0:00:17]}  Bc5 {[%clk 0:00:05]} 38. Ke2 {[%clk 0:00:17]}  Rf4 {[%clk 0:00:05]} 39. Rxa7 {[%clk 0:00:16]}  Rb4 {[%clk 0:00:04]} 40. Ne5 {[%clk 0:00:15]}  Bd4 {[%clk 0:00:04]} 41. Nc6 {[%clk 0:00:15]}  Rb2+ {[%clk 0:00:03]} 42. Kd3 {[%clk 0:00:15]}  Bf6 {[%clk 0:00:03]} 43. g3 {[%clk 0:00:14]}  Rxh2 {[%clk 0:00:03]} 44. Rb7 {[%clk 0:00:15]}  Rg2 {[%clk 0:00:02]} 45. Rxb6 {[%clk 0:00:15]}  Rxg3+ {[%clk 0:00:02]} 46. Ke4 {[%clk 0:00:15]}  h5 {[%clk 0:00:02]} 47. a5 {[%clk 0:00:15]}  Ra3 {[%clk 0:00:02]} 48. a6 {[%clk 0:00:15]}  h4 {[%clk 0:00:02]} 49. Ne5 {[%clk 0:00:12]}  Bxe5 {[%clk 0:00:02]} 50. Kxe5 {[%clk 0:00:12]}  h3 {[%clk 0:00:02]} 51. a7 {[%clk 0:00:09]}  Rxa7 {[%clk 0:00:02]} 52. Ra6 {[%clk 0:00:09]}  h2 {[%clk 0:00:02]} 53. Rxa7 {[%clk 0:00:09]}  h1=Q {[%clk 0:00:02]} 54. Kxe6 {[%clk 0:00:09]}  Qe1+ {[%clk 0:00:02]} 55. Kd6 {[%clk 0:00:09]}  Qd2+ {[%clk 0:00:02]} 56. Kc6 {[%clk 0:00:09]}  Qc3+ {[%clk 0:00:02]} 57. Kb7 {[%clk 0:00:09]}  Qb4 {[%clk 0:00:02]} 58. b6 {[%clk 0:00:09]}  g5 {[%clk 0:00:02]} 59. Ra2 {[%clk 0:00:08]}  Kg6 {[%clk 0:00:00]} 60. Ka7 {[%clk 0:00:07]} 1-0


[Site "https://www.chess.com"]

[Event "Titled Tuesday Blitz October 31 Late 2023"]
[White "Oliveira, Tiago Batista"]
[Black "Smirnov, Timofey"]
[WhiteFideId "2108291"]
[BlackFideId "24176427"]
[WhiteElo "2040"]
[BlackElo "2233"]
[Result "1-0"]
[Round "5"]
[TimeControl "180+1"]
[Date "2023.10.31"]
[WhiteClock "0:00:05"]
[BlackClock "0:00:00"]
[Board "143"]

1. d4 {[%clk 0:02:57]}  d5 {[%clk 0:02:59]} 2. c4 {[%clk 0:02:54]}  c6 {[%clk 0:03:00]} 3. Nf3 {[%clk 0:02:53]}  Nf6 {[%clk 0:03:00]} 4. Qc2 {[%clk 0:02:46]}  e6 {[%clk 0:02:53]} 5. g3 {[%clk 0:02:38]}  Be7 {[%clk 0:02:48]} 6. Bg2 {[%clk 0:02:09]}  O-O {[%clk 0:02:48]} 7. O-O {[%clk 0:02:09]}  a5 {[%clk 0:02:47]} 8. Nbd2 {[%clk 0:02:06]}  Nbd7 {[%clk 0:02:44]} 9. Rd1 {[%clk 0:02:06]}  Qc7 {[%clk 0:02:37]} 10. e4 {[%clk 0:02:06]}  dxe4 {[%clk 0:02:33]} 11. Nxe4 {[%clk 0:02:06]}  Nxe4 {[%clk 0:02:33]} 12. Qxe4 {[%clk 0:02:06]}  Nf6 {[%clk 0:02:34]} 13. Qc2 {[%clk 0:02:05]}  Rd8 {[%clk 0:02:23]} 14. c5 {[%clk 0:02:03]}  b5 {[%clk 0:02:17]} 15. Bf4 {[%clk 0:02:01]}  Qb7 {[%clk 0:02:12]} 16. Ne5 {[%clk 0:01:49]}  Nd5 {[%clk 0:02:10]} 17. Bd2 {[%clk 0:01:49]}  b4 {[%clk 0:02:07]} 18. Qe4 {[%clk 0:01:47]}  Bf6 {[%clk 0:02:04]} 19. Bf1 {[%clk 0:01:41]}  Bxe5 {[%clk 0:02:02]} 20. dxe5 {[%clk 0:01:42]}  Qe7 {[%clk 0:01:57]} 21. Bd3 {[%clk 0:01:41]}  g6 {[%clk 0:01:53]} 22. h4 {[%clk 0:01:29]}  Qxc5 {[%clk 0:01:49]} 23. Rac1 {[%clk 0:01:28]}  Qb6 {[%clk 0:01:43]} 24. h5 {[%clk 0:01:25]}  Ba6 {[%clk 0:01:41]} 25. Bb1 {[%clk 0:01:23]}  Bb5 {[%clk 0:01:34]} 26. hxg6 {[%clk 0:01:22]}  hxg6 {[%clk 0:01:33]} 27. Bh6 {[%clk 0:01:10]}  Ne7 {[%clk 0:01:20]} 28. Qh4 {[%clk 0:00:52]}  Rxd1+ {[%clk 0:00:55]} 29. Rxd1 {[%clk 0:00:51]}  Rd8 {[%clk 0:00:30]} 30. Re1 {[%clk 0:00:14]}  Nd5 {[%clk 0:00:27]} 31. Bg5 {[%clk 0:00:12]}  Rd7 {[%clk 0:00:14]} 32. Bf6 {[%clk 0:00:12]}  Nxf6 {[%clk 0:00:12]} 33. exf6 {[%clk 0:00:12]}  Qd4 {[%clk 0:00:12]} 34. Re4 {[%clk 0:00:07]}  Qd1+ {[%clk 0:00:09]} 35. Kh2 {[%clk 0:00:07]}  Qxb1 {[%clk 0:00:00]} 36. Qh6 {[%clk 0:00:05]} 1-0


[Site "https://www.chess.com"]

[Event "Titled Tuesday Blitz October 31 Late 2023"]
[White "Broca Jimenez, Fernando"]
[Black "Bongo Akanga Ndjila, Barthelemy"]
[WhiteFideId "5104742"]
[BlackFideId "10609431"]
[WhiteElo "2230"]
[BlackElo "2018"]
[Result "1-0"]
[Round "5"]
[TimeControl "180+1"]
[Date "2023.10.31"]
[WhiteClock "0:00:38"]
[BlackClock "0:00:00"]
[Board "145"]

1. e4 {[%clk 0:02:58]}  e6 {[%clk 0:02:03]} 2. d4 {[%clk 0:02:57]}  d5 {[%clk 0:02:04]} 3. exd5 {[%clk 0:02:57]}  exd5 {[%clk 0:02:04]} 4. Bd3 {[%clk 0:02:58]}  Bd6 {[%clk 0:02:04]} 5. Nf3 {[%clk 0:02:59]}  Ne7 {[%clk 0:01:56]} 6. Bg5 {[%clk 0:02:58]}  f6 {[%clk 0:01:55]} 7. Bh4 {[%clk 0:02:58]}  O-O {[%clk 0:01:55]} 8. O-O {[%clk 0:02:57]}  Bf5 {[%clk 0:01:55]} 9. Re1 {[%clk 0:02:56]}  Bg4 {[%clk 0:01:52]} 10. Nbd2 {[%clk 0:02:46]}  Nf5 {[%clk 0:01:49]} 11. Bg3 {[%clk 0:02:46]}  Bxg3 {[%clk 0:01:31]} 12. hxg3 {[%clk 0:02:47]}  Nc6 {[%clk 0:01:20]} 13. c3 {[%clk 0:02:44]}  Qd7 {[%clk 0:01:19]} 14. Qc2 {[%clk 0:02:39]}  Rae8 {[%clk 0:01:15]} 15. Nh2 {[%clk 0:02:33]}  Nh6 {[%clk 0:01:01]} 16. Bxh7+ {[%clk 0:02:21]}  Kh8 {[%clk 0:01:01]} 17. Bg6 {[%clk 0:02:18]}  Rxe1+ {[%clk 0:00:59]} 18. Rxe1 {[%clk 0:02:19]}  Bf5 {[%clk 0:00:59]} 19. Bxf5 {[%clk 0:02:14]}  Nxf5 {[%clk 0:00:56]} 20. Qd3 {[%clk 0:02:07]}  Kg8 {[%clk 0:00:53]} 21. Nhf3 {[%clk 0:01:56]}  Kf7 {[%clk 0:00:51]} 22. g4 {[%clk 0:01:39]}  Nd6 {[%clk 0:00:48]} 23. g5 {[%clk 0:01:34]}  Qf5 {[%clk 0:00:45]} 24. Qxf5 {[%clk 0:01:26]}  Nxf5 {[%clk 0:00:46]} 25. g4 {[%clk 0:01:08]}  Nd6 {[%clk 0:00:43]} 26. Kg2 {[%clk 0:01:08]}  Ne7 {[%clk 0:00:38]} 27. gxf6 {[%clk 0:01:03]}  gxf6 {[%clk 0:00:38]} 28. Nh4 {[%clk 0:01:00]}  Rh8 {[%clk 0:00:33]} 29. Kg3 {[%clk 0:00:58]}  Rg8 {[%clk 0:00:30]} 30. f3 {[%clk 0:00:58]}  Nef5+ {[%clk 0:00:29]} 31. Nxf5 {[%clk 0:00:57]}  Nxf5+ {[%clk 0:00:29]} 32. Kf4 {[%clk 0:00:57]}  Nh4 {[%clk 0:00:29]} 33. Re2 {[%clk 0:00:55]}  Ng6+ {[%clk 0:00:28]} 34. Kg3 {[%clk 0:00:56]}  Rh8 {[%clk 0:00:27]} 35. Nf1 {[%clk 0:00:54]}  Rh1 {[%clk 0:00:26]} 36. Ne3 {[%clk 0:00:53]}  Rg1+ {[%clk 0:00:26]} 37. Kf2 {[%clk 0:00:54]}  Rh1 {[%clk 0:00:15]} 38. Nxd5 {[%clk 0:00:54]}  c6 {[%clk 0:00:14]} 39. Nb4 {[%clk 0:00:43]}  Nf4 {[%clk 0:00:11]} 40. Rc2 {[%clk 0:00:41]}  a5 {[%clk 0:00:00]} 41. Ke3 {[%clk 0:00:38]} 1-0


[Site "https://www.chess.com"]

[Event "Titled Tuesday Blitz October 31 Late 2023"]
[White "Krasik, Ilya"]
[Black "Lukey, Stephen G"]
[WhiteFideId "2024527"]
[BlackFideId "4300386"]
[WhiteElo "1968"]
[BlackElo "2229"]
[Result "1/2-1/2"]
[Round "5"]
[TimeControl "180+1"]
[Date "2023.10.31"]
[WhiteClock "0:00:08"]
[BlackClock "0:00:04"]
[Board "146"]

1. d4 {[%clk 0:02:36]}  Nf6 {[%clk 0:02:58]} 2. c4 {[%clk 0:02:35]}  g6 {[%clk 0:02:58]} 3. Nc3 {[%clk 0:02:34]}  Bg7 {[%clk 0:02:58]} 4. e4 {[%clk 0:02:24]}  O-O {[%clk 0:02:58]} 5. Be2 {[%clk 0:02:23]}  d6 {[%clk 0:02:58]} 6. Bg5 {[%clk 0:02:22]}  c5 {[%clk 0:02:46]} 7. d5 {[%clk 0:02:21]}  a6 {[%clk 0:02:43]} 8. a4 {[%clk 0:02:15]}  e6 {[%clk 0:02:37]} 9. Nf3 {[%clk 0:01:59]}  exd5 {[%clk 0:02:33]} 10. cxd5 {[%clk 0:02:00]}  Qa5 {[%clk 0:02:22]} 11. Nd2 {[%clk 0:01:55]}  Re8 {[%clk 0:02:12]} 12. O-O {[%clk 0:01:51]}  Nbd7 {[%clk 0:02:04]} 13. Nc4 {[%clk 0:01:03]}  Qc7 {[%clk 0:02:04]} 14. Qc2 {[%clk 0:00:57]}  Ne5 {[%clk 0:01:47]} 15. Ne3 {[%clk 0:00:31]}  c4 {[%clk 0:01:38]} 16. a5 {[%clk 0:00:29]}  Bd7 {[%clk 0:01:33]} 17. h3 {[%clk 0:00:27]}  Bb5 {[%clk 0:01:31]} 18. Kh2 {[%clk 0:00:26]}  Rac8 {[%clk 0:01:28]} 19. f4 {[%clk 0:00:24]}  Nd3 {[%clk 0:01:28]} 20. Bxd3 {[%clk 0:00:22]}  cxd3 {[%clk 0:01:27]} 21. Qb3 {[%clk 0:00:20]}  Nxe4 {[%clk 0:01:23]} 22. Nxb5 {[%clk 0:00:18]}  axb5 {[%clk 0:01:22]} 23. Qxd3 {[%clk 0:00:18]}  Nxg5 {[%clk 0:01:13]} 24. fxg5 {[%clk 0:00:19]}  Be5+ {[%clk 0:00:49]} 25. Kh1 {[%clk 0:00:18]}  Qe7 {[%clk 0:00:39]} 26. h4 {[%clk 0:00:17]}  Qd7 {[%clk 0:00:37]} 27. Qe4 {[%clk 0:00:09]}  Rc5 {[%clk 0:00:34]} 28. Qf3 {[%clk 0:00:09]}  Bxb2 {[%clk 0:00:29]} 29. Ng4 {[%clk 0:00:10]}  Bg7 {[%clk 0:00:22]} 30. Nf6+ {[%clk 0:00:09]}  Bxf6 {[%clk 0:00:21]} 31. Qxf6 {[%clk 0:00:10]}  Rxd5 {[%clk 0:00:19]} 32. Rac1 {[%clk 0:00:09]}  Qe6 {[%clk 0:00:18]} 33. Qf4 {[%clk 0:00:08]}  Re5 {[%clk 0:00:15]} 34. Rc7 {[%clk 0:00:07]}  Re4 {[%clk 0:00:14]} 35. Qxf7+ {[%clk 0:00:05]}  Qxf7 {[%clk 0:00:13]} 36. Rfxf7 {[%clk 0:00:06]}  Rxh4+ {[%clk 0:00:13]} 37. Kg1 {[%clk 0:00:04]}  Rh5 {[%clk 0:00:11]} 38. Rg7+ {[%clk 0:00:03]}  Kh8 {[%clk 0:00:11]} 39. Rxb7 {[%clk 0:00:04]}  d5 {[%clk 0:00:04]} 40. Rgd7 {[%clk 0:00:05]}  Rxg5 {[%clk 0:00:04]} 41. Rxh7+ {[%clk 0:00:04]}  Kg8 {[%clk 0:00:04]} 42. Rhg7+ {[%clk 0:00:05]}  Kh8 {[%clk 0:00:03]} 43. Rh7+ {[%clk 0:00:05]}  Kg8 {[%clk 0:00:04]} 44. Rbg7+ {[%clk 0:00:03]}  Kf8 {[%clk 0:00:04]} 45. Rf7+ {[%clk 0:00:04]}  Kg8 {[%clk 0:00:04]} 46. Rhg7+ {[%clk 0:00:05]}  Kh8 {[%clk 0:00:04]} 47. Rh7+ {[%clk 0:00:06]}  Kg8 {[%clk 0:00:04]} 48. Rhg7+ {[%clk 0:00:07]}  Kh8 {[%clk 0:00:04]} 49. Rh7+ {[%clk 0:00:08]}  Kg8 {[%clk 0:00:04]} 1/2-1/2


[Site "https://www.chess.com"]

[Event "Titled Tuesday Blitz October 31 Late 2023"]
[White "Andreikin, Dmitry"]
[Black "Krallis, Christos"]
[WhiteFideId "4158814"]
[BlackFideId "4298896"]
[WhiteElo "3118"]
[BlackElo "2755"]
[Result "1-0"]
[Round "6"]
[TimeControl "180+1"]
[Date "2023.10.31"]
[WhiteClock "0:02:14"]
[BlackClock "0:00:17"]
[Board "3"]

1. d4 {[%clk 0:03:00]}  Nf6 {[%clk 0:02:59]} 2. c4 {[%clk 0:03:00]}  e6 {[%clk 0:02:59]} 3. Nf3 {[%clk 0:02:58]}  d5 {[%clk 0:02:58]} 4. Nc3 {[%clk 0:02:59]}  Be7 {[%clk 0:02:58]} 5. Bf4 {[%clk 0:02:56]}  O-O {[%clk 0:02:57]} 6. e3 {[%clk 0:02:56]}  c5 {[%clk 0:02:57]} 7. dxc5 {[%clk 0:02:54]}  Bxc5 {[%clk 0:02:57]} 8. a3 {[%clk 0:02:54]}  Nc6 {[%clk 0:02:56]} 9. Be2 {[%clk 0:02:50]}  dxc4 {[%clk 0:02:45]} 10. O-O {[%clk 0:02:48]}  a6 {[%clk 0:02:35]} 11. Bxc4 {[%clk 0:02:43]}  b5 {[%clk 0:02:33]} 12. Bd3 {[%clk 0:02:41]}  Qe7 {[%clk 0:02:07]} 13. Ne4 {[%clk 0:02:37]}  Nd5 {[%clk 0:01:22]} 14. Rc1 {[%clk 0:02:27]}  f5 {[%clk 0:00:25]} 15. Nxc5 {[%clk 0:02:21]}  e5 {[%clk 0:00:26]} 16. Bxb5 {[%clk 0:02:15]}  axb5 {[%clk 0:00:18]} 17. Qxd5+ {[%clk 0:02:14]}  Kh8 {[%clk 0:00:17]} 18. Qxc6 {[%clk 0:02:14]} 1-0


[Site "https://www.chess.com"]

[Event "Titled Tuesday Blitz October 31 Late 2023"]
[White "Hong, Andrew"]
[Black "Sokolovsky, Yahli"]
[WhiteFideId "2099438"]
[BlackFideId "2820242"]
[WhiteElo "2963"]
[BlackElo "2800"]
[Result "0-1"]
[Round "6"]
[TimeControl "180+1"]
[Date "2023.10.31"]
[WhiteClock "0:00:05"]
[BlackClock "0:00:11"]
[Board "4"]

1. e4 {[%clk 0:03:00]}  d6 {[%clk 0:03:00]} 2. d4 {[%clk 0:03:00]}  g6 {[%clk 0:03:01]} 3. Nc3 {[%clk 0:03:01]}  Bg7 {[%clk 0:03:02]} 4. Be3 {[%clk 0:03:01]}  a6 {[%clk 0:03:02]} 5. h4 {[%clk 0:03:01]}  h5 {[%clk 0:03:02]} 6. Qd2 {[%clk 0:03:01]}  b5 {[%clk 0:03:02]} 7. f3 {[%clk 0:03:00]}  c6 {[%clk 0:02:58]} 8. Bd3 {[%clk 0:02:58]}  Nf6 {[%clk 0:02:57]} 9. O-O-O {[%clk 0:02:56]}  Nbd7 {[%clk 0:02:56]} 10. Nh3 {[%clk 0:02:54]}  Nb6 {[%clk 0:02:56]} 11. Ng5 {[%clk 0:02:54]}  b4 {[%clk 0:02:55]} 12. Ne2 {[%clk 0:02:54]}  a5 {[%clk 0:02:54]} 13. Nf4 {[%clk 0:02:51]}  e5 {[%clk 0:02:49]} 14. dxe5 {[%clk 0:02:10]}  dxe5 {[%clk 0:02:50]} 15. Nfh3 {[%clk 0:02:07]}  O-O {[%clk 0:02:47]} 16. Qf2 {[%clk 0:01:55]}  Rb8 {[%clk 0:02:32]} 17. Bc5 {[%clk 0:01:39]}  Qc7 {[%clk 0:02:19]} 18. g4 {[%clk 0:01:11]}  hxg4 {[%clk 0:02:16]} 19. fxg4 {[%clk 0:01:12]}  Bxg4 {[%clk 0:02:16]} 20. Rdg1 {[%clk 0:01:11]}  Rfd8 {[%clk 0:02:02]} 21. Qe3 {[%clk 0:00:58]}  Na4 {[%clk 0:01:57]} 22. Bc4 {[%clk 0:00:46]}  Rd7 {[%clk 0:00:53]} 23. Nxf7 {[%clk 0:00:45]}  Rxf7 {[%clk 0:00:54]} 24. Ng5 {[%clk 0:00:45]}  Bh6 {[%clk 0:00:55]} 25. Kb1 {[%clk 0:00:30]}  Nxc5 {[%clk 0:00:41]} 26. Qxc5 {[%clk 0:00:29]}  Rf8 {[%clk 0:00:41]} 27. Rf1 {[%clk 0:00:26]}  Bxg5 {[%clk 0:00:36]} 28. hxg5 {[%clk 0:00:24]}  Nh5 {[%clk 0:00:37]} 29. Rxf7 {[%clk 0:00:22]}  Rxf7 {[%clk 0:00:37]} 30. Rg1 {[%clk 0:00:07]}  Bh3 {[%clk 0:00:31]} 31. Qe3 {[%clk 0:00:06]}  Bc8 {[%clk 0:00:28]} 32. Rf1 {[%clk 0:00:03]}  Nf4 {[%clk 0:00:28]} 33. Rd1 {[%clk 0:00:03]}  Be6 {[%clk 0:00:26]} 34. Bxe6 {[%clk 0:00:02]}  Nxe6 {[%clk 0:00:27]} 35. Qh3 {[%clk 0:00:03]}  Nf4 {[%clk 0:00:26]} 36. Qb3 {[%clk 0:00:02]}  Kg7 {[%clk 0:00:25]} 37. Rh1 {[%clk 0:00:02]}  Rd7 {[%clk 0:00:23]} 38. Qg3 {[%clk 0:00:02]}  Qd8 {[%clk 0:00:23]} 39. Qf3 {[%clk 0:00:01]}  Rd2 {[%clk 0:00:22]} 40. a3 {[%clk 0:00:02]}  Qd4 {[%clk 0:00:21]} 41. axb4 {[%clk 0:00:02]}  axb4 {[%clk 0:00:22]} 42. Qg4 {[%clk 0:00:01]}  Qd7 {[%clk 0:00:20]} 43. Qf3 {[%clk 0:00:01]}  c5 {[%clk 0:00:17]} 44. Rf1 {[%clk 0:00:01]}  c4 {[%clk 0:00:16]} 45. Qh1 {[%clk 0:00:02]}  b3 {[%clk 0:00:15]} 46. Qh6+ {[%clk 0:00:01]}  Kg8 {[%clk 0:00:14]} 47. Qh1 {[%clk 0:00:02]}  bxc2+ {[%clk 0:00:14]} 48. Kc1 {[%clk 0:00:02]}  Rd1+ {[%clk 0:00:14]} 49. Kxc2 {[%clk 0:00:01]}  Rxf1 {[%clk 0:00:14]} 50. Qxf1 {[%clk 0:00:02]}  Qd3+ {[%clk 0:00:12]} 51. Qxd3 {[%clk 0:00:02]}  cxd3+ {[%clk 0:00:09]} 52. Kc3 {[%clk 0:00:02]}  Kf7 {[%clk 0:00:10]} 53. b4 {[%clk 0:00:02]}  Ke6 {[%clk 0:00:11]} 54. b5 {[%clk 0:00:02]}  Kd6 {[%clk 0:00:11]} 55. b6 {[%clk 0:00:02]}  Kc6 {[%clk 0:00:12]} 56. Kc4 {[%clk 0:00:03]}  d2 {[%clk 0:00:11]} 57. b7 {[%clk 0:00:03]}  Kxb7 {[%clk 0:00:12]} 58. Kc5 {[%clk 0:00:03]}  d1=Q {[%clk 0:00:12]} 59. Kc4 {[%clk 0:00:04]}  Qd4+ {[%clk 0:00:12]} 60. Kb5 {[%clk 0:00:04]}  Kc7 {[%clk 0:00:12]} 61. Ka6 {[%clk 0:00:05]}  Kc6 {[%clk 0:00:11]} 62. Ka5 {[%clk 0:00:04]}  Ne6 {[%clk 0:00:11]} 63. Ka6 {[%clk 0:00:05]}  Qb6# {[%clk 0:00:11]} 0-1


[Site "https://www.chess.com"]